[Event "8th Montevideo Open 2025"]
[Site "Montevideo"]
[Date "2025.02.02"]
[Round "3.7"]
[White "De Dovitiis, Alejo"]
[Black "Meza, Anahi"]
[Result "1-0"]
[Annotator "TA"]
[ECO "E73"]
[WhiteElo "2225"]
[BlackElo "2038"]
[PlyCount "87"]
[EventDate "2025.02.01"]
[EventType "swiss"]
[EventCountry "URU"]
[SourceTitle "playchess.com"]
[Source "ChessBase"]
[SourceQuality "1"]
[TimeControl "5400+30"]

{[%evp 16,87,78,68,91,68,118,122,114,111,133,121,156,137,140,144,145,127,136,117,129,121,135,135,142,141,143,134,134,133,125,121,143,137,157,160,137,142,141,171,260,270,266,185,258,229,487,460,457,394,487,475,637,577,710,708,777,771,760,732,793,684,627,695,1058,1021,1099,1078,29970,5098,6295,5029,2589,560]} 1. d4 {[%emt 0:07:48]} Nf6 {[%emt 0:00:24]} 2. c4 {[%emt 0:00:15]} g6 {[%emt 0:00:18]} 3. Nc3 {[%emt 0:00:06]} Bg7 {[%emt 0:00:13]} 4. e4 {[%emt 0:00:13]} d6 {[%emt 0:00:05]} 5. Be2 {[%emt 0:00:28]} O-O {[%emt 0:00:32]} 6. Bg5 {[%emt 0:00:16]} h6 {[%emt 0:07:35]} 7. Be3 {[%emt 0:00:22]} Nbd7 {[%emt 0:00:43]} 8. Qd2 {[%emt 0:00:45]} Kh7 {[%emt 0:01:10] The main line 8...Kh7 scores better than 8...c5.} 9. h4 {[%emt 0:01:34][%cal Bh2h4,Bh4h5][%mdl 32]} e5 {[%emt 0:03:43] E73: King's Indian: Averbakh Variation without 6...c5.} 10. h5 {[%emt 0:02:32]} g5 {[%emt 0:05:25]} ({Black should try} 10... Nxh5 $14 11. Bxh5 gxh5) 11. d5 $16 {[%emt 0:01:17]} Nc5 {[%emt 0:01:40] White is better.} 12. f3 {[%emt 0:00:14]} a5 {[%emt 0:00:43]} 13. g4 {[%emt 0:00:38]} Ne8 {[%emt 0:10:14]} 14. Nh3 {[%emt 0:00:45]} Bf6 {[%emt 0:00:28]} 15. Nf2 {[%emt 0:00:33]} Bd7 {[%emt 0:05:14]} 16. Rd1 {[%emt 0:09:55]} Be7 $146 {[%emt 0:03:47]} (16... Ng7 17. O-O b6 18. b3 Qe7 19. Nb5 Rfc8 20. Nh1 Qd8 21. Ng3 Ne8 22. Qc2 Be7 {1-0 Ionescu,C (2525)-Lopez,S Berga op 1996}) 17. Kf1 {[%emt 0:02:12]} Nf6 {[%emt 0:07:57]} 18. Kg2 {[%emt 0:00:40]} Ra6 {[%emt 0:06:15]} 19. b3 {[%emt 0:02:42]} Qc8 {[%emt 0:01:31]} 20. Rc1 {[%emt 0:06:01]} Ra8 {[%emt 0:01:19]} 21. Qb2 {[%emt 0:01:52]} Ng8 {[%emt 0:03:14]} 22. Nb1 {[%emt 0:01:19]} Re8 {[%emt 0:02:02]} 23. Nd2 {[%emt 0:00:41]} Na6 {[%emt 0:08:55]} 24. a3 {[%emt 0:13:29] White is more active.} Nc5 {[%emt 0:03:02]} 25. b4 {[%emt 0:02:11]} (25. Bxc5 dxc5 26. f4 (26. Qxe5 Bf6 $16) 26... gxf4 $11) 25... axb4 {[%emt 0:02:07]} 26. axb4 {[%emt 0:00:06]} Na4 {[%emt 0:00:04]} 27. Qb3 {[%emt 0:01:36] White has space advantage and is better} b6 {[%emt 0:00:39]} (27... c5 $142 28. Ra1 Qc7) 28. Ra1 $18 {[%emt 0:04:46]} Qb7 {[%emt 0:06:54]} 29. Nd3 {[%emt 0:06:38]} f5 {[%emt 0:03:37]} (29... Reb8 30. Rhc1 Nf6) 30. exf5 {[%emt 0:01:29]} e4 $2 {[%emt 0:00:49] [#]} (30... Nf6 {is a better defense.} 31. Nf2 b5) 31. fxe4 {[%emt 0:03:08]} Bf6 {[%emt 0:00:11]} 32. Rac1 {[%emt 0:00:24] Prevents Nc3.} Bg7 {[%emt 0:00:47]} 33. Bf3 {[%emt 0:02:13]} c6 {[%emt 0:01:48]} 34. dxc6 {[%emt 0:03:28]} Bxc6 {[%emt 0:00:29]} 35. b5 {[%emt 0:01:09]} Bxe4 {[%emt 0:00:50]} 36. Nxe4 {[%emt 0:00:20]} (36. Bxe4 Rxe4 37. Nxe4 Qxe4+ 38. Kf2 Nc3 $17 (38... Qxg4 39. Qd1 $14) (38... Nf6 $2 39. Rhg1 $19)) 36... Rxe4 {[%emt 0:00:05]} 37. Nf2 {[%emt 0:00:10]} (37. Bxe4 $2 {loses.} Qxe4+ 38. Kf2 Nf6 $19 (38... Qxg4 39. Qd1 $14)) 37... Nf6 {[%emt 0:06:57]} 38. Bd4 {[%emt 0:13:54]} d5 {[%emt 0:01:56]} 39. Bxf6 {[%emt 0:00:34]} Bxf6 {[%emt 0:00:02]} 40. cxd5 {[%emt 0:00:27][%cal Bc4d5,Bd5d6][%mdl 32]} Rf4 {[%emt 0:01:38]} 41. d6 {[%emt 0:01:16]} Qb8 {[%emt 0:02:55]} 42. Rc7+ {[%emt 0:00:39]} Bg7 {[%emt 0:01:23]} 43. Qf7 {[%emt 0:01:20][%csl Gc7][%cal Rf7g7] [#]} Qf8 {[%emt 0:00:43]} 44. Qxg7+ {[%emt 0:02:56] Weighted Error Value: White=0.39/Black=0.71  Mistake:       	---       	Black=4      Inaccurate:     	White=1     	Black=1      OK:         	White=11    	Black=5} (44. Qg6+ $142 Kh8 45. Bxa8 Qxa8+ 46. Kg1) 1-0

[Event "8th Montevideo Open 2025"]
[Site "Montevideo"]
[Date "2025.02.02"]
[Round "3.8"]
[White "Komarov, Leonid"]
[Black "Coppola, Claudio"]
[Result "1/2-1/2"]
[Annotator "TA"]
[ECO "D07"]
[WhiteElo "1956"]
[BlackElo "2220"]
[PlyCount "107"]
[EventDate "2025.02.01"]
[EventType "swiss"]
[EventCountry "URU"]
[SourceTitle "playchess.com"]
[Source "ChessBase"]
[SourceQuality "1"]
[TimeControl "5400+30"]

{[%evp 10,107,49,36,78,82,79,76,79,70,121,32,108,52,44,0,0,0,0,0,0,0,0,0,0,0,-4,-4,0,0,3,0,0,-2,3,0,0,-6,-10,-13,-7,-16,0,-22,-23,-22,-23,-41,-36,-90,-28,-25,0,-35,-43,-47,-15,-14,-6,-17,-16,-12,0,0,0,0,0,0,0,-19,-17,-39,0,0,0,0,0,0,0,0,0,0,0,0,0,0,0,0,0,0,0,0,0,0,0,0,0,0,0,0]} 1. d4 {[%emt 0:00:04]} d5 {[%emt 0:02:01][%cal Bd7d5,Bd5d4][%mdl 32]} 2. c4 {[%emt 0:00:04]} e5 {[%emt 0:00:16]} 3. dxe5 {[%emt 0:00:29]} d4 {[%emt 0:00:04]} 4. Nf3 {[%emt 0:00:14]} Nc6 {[%emt 0:00:04]} 5. a3 {[%emt 0:00:28]} Nge7 {[%emt 0:00:13]} 6. e3 {[%emt 0:00:11]} dxe3 {[%emt 0:10:49] D07: Queen's Gambit: Chigorin Defence.} 7. Qxd8+ {[%emt 0:00:25]} (7. fxe3 Qxd1+ 8. Kxd1 Ng6 $15) 7... Nxd8 {[%emt 0:00:03]} 8. Bxe3 {[%emt 0:00:09]} Ndc6 {[%emt 0:00:14][%cal Bd8c6,Bc6e5,Be5d3][%mdl 32] White is better.} 9. Nc3 {[%emt 0:00:20] [#] White is more active.} Bg4 {[%emt 0:02:11]} (9... Bd7 $14) 10. Be2 $146 {[%emt 0:03:01]} (10. O-O-O $16) (10. O-O-O a6 11. Bf4 h6 12. h4 Ng6 13. Bg3 h5 14. e6 fxe6 15. Bd3 Rh6 16. Bxc7 Bxf3 17. gxf3 {1-0 Suarez Martinez,Y (2028)-Garcia Romagosa,A Giraldilla de La Habana op 2018 (8)}) 10... Bxf3 {[%emt 0:21:10]} ({Black should try} 10... O-O-O $1 $14) 11. Bxf3 {[%emt 0:00:25]} (11. gxf3 $16 {aiming for 0-0-0.} Nxe5 12. O-O-O) 11... O-O-O $1 $14 {[%emt 0:00:04]} 12. O-O {[%emt 0:00:41]} Nxe5 {[%emt 0:00:44]} 13. Be2 {[%emt 0:00:07][%cal Oa1d1]} Nf5 {[%emt 0:06:32]} 14. Bf4 {[%emt 0:01:57]} (14. Bxa7 b6 15. Rfd1 Bc5 $19) 14... Nd3 {[%emt 0:05:03]} 15. Bg5 {[%emt 0:07:32] This pair of bishops is nice.} Be7 {[%emt 0:03:07]} 16. Bxe7 {[%emt 0:01:14]} Nxe7 {[%emt 0:00:05]} 17. Bxd3 {[%emt 0:00:13]} Rxd3 {[%emt 0:00:06]} 18. Rfd1 {[%emt 0:00:04]} Rxd1+ {[%emt 0:06:25]} 19. Rxd1 $11 {[%emt 0:00:01][%mdl 4096] Endgame KRN-KRN} Nc6 {[%emt 0:00:55][%cal Be7c6,Bc6a5,Ba5b3][%mdl 32]} 20. Kf1 {[%emt 0:01:40]} Na5 {[%emt 0:04:47]} 21. Rd4 {[%emt 0:00:35]} Re8 {[%emt 0:07:51]} 22. g3 {[%emt 0:01:34]} Nb3 {[%emt 0:04:48]} 23. Rd1 {[%emt 0:00:57]} c6 {[%emt 0:01:06]} 24. Kg2 {[%emt 0:00:39]} f5 {[%emt 0:11:42]} 25. Rd3 {[%emt 0:03:24]} g5 {[%emt 0:02:39]} 26. Nb5 {[%emt 0:06:04]} cxb5 {[%emt 0:01:55]} 27. Rxb3 {[%emt 0:00:05]} bxc4 {[%emt 0:00:07] KR-KR. Black is a pawn up.} 28. Rb5 {[%emt 0:01:37]} Re2 {[%emt 0:02:40]} 29. Rxf5 {[%emt 0:08:19] [#]} (29. Kf3 $15 Rc2 30. Rxf5) 29... b6 {[%emt 0:04:12]} ({Stronger than} 29... Rxb2 30. Rc5+ Kd7 31. Rxc4 $16) (29... Kd7 $1 $17 30. Rc5 (30. Rxg5 Rxb2 31. Kf3 c3 $11) 30... Rc2) 30. Rb5 $1 {[%emt 0:01:05]} Kc7 {[%emt 0:00:50]} 31. Rb4 {[%emt 0:00:11]} Rc2 {[%emt 0:00:14]} 32. b3 $1 {[%emt 0:00:23]} c3 {[%emt 0:00:14]} (32... Kc6 {simplifies} 33. bxc4 a6 34. Rb3 Rxc4 35. Re3 a5) 33. Rc4+ {[%emt 0:00:09]} Kd6 {[%emt 0:00:22]} 34. Kf3 {[%emt 0:00:14]} b5 {[%emt 0:02:03]} 35. Rc8 {[%emt 0:00:18]} a5 {[%emt 0:00:09]} 36. b4 {[%emt 0:01:04]} axb4 {[%emt 0:01:03]} 37. axb4 {[%emt 0:00:04]} Rb2 {[%emt 0:00:57]} 38. Rxc3 {[%emt 0:00:07]} Rxb4 {[%emt 0:00:02]} 39. h3 {[%emt 0:01:26]} Ra4 {[%emt 0:01:20]} 40. Rc8 {[%emt 0:00:44]} Ra7 {[%emt 0:00:48]} 41. Rb8 {[%emt 0:00:16] The position is equal.} Kc6 {[%emt 0:00:25]} 42. Ke4 {[%emt 0:01:14]} Re7+ {[%emt 0:00:23]} 43. Kd4 {[%emt 0:01:15]} Rf7 {[%emt 0:00:32]} 44. Rg8 {[%emt 0:00:25]} Rf5 {[%emt 0:01:15]} 45. Rg7 {[%emt 0:00:23]} h5 {[%emt 0:00:00]} 46. Rg6+ {[%emt 0:00:20]} Kc7 {[%emt 0:00:00]} 47. g4 {[%emt 0:03:44]} hxg4 {[%emt 0:00:00]} 48. hxg4 {[%emt 0:00:05]} Rf4+ {[%emt 0:00:00]} 49. Kc5 {[%emt 0:01:10]} b4 {[%emt 0:01:32]} 50. Rxg5 {[%emt 0:01:31]} b3 {[%emt 0:00:28][%cal Of4b4]} 51. Rg7+ {[%emt 0:00:23]} Kb8 {[%emt 0:00:21][%cal Of4b4] ...Rb4! is the strong threat.} 52. Re7 {[%emt 0:00:53]} b2 {[%emt 0:00:27]} 53. Re1 {[%emt 0:00:07]} Rxf2 {[%emt 0:00:22]} 54. Rb1 {[%emt 0:00:44] Weighted Error Value: White=0.10 (very precise) /Black=0.10 (very precise)   Mistake:       	White=3     	Black=3      Inaccurate:     	White=2     	Black=2      OK:         	White=21    	Black=19     Best:        	White=2     	---        Strong:       	White=2     	Black=1} 1/2-1/2

[Event "8th Montevideo Open 2025"]
[Site "Montevideo"]
[Date "2025.02.02"]
[Round "3.9"]
[White "Quevedo, Andreina"]
[Black "Vazquez, Facundo"]
[Result "0-1"]
[Annotator "TA"]
[ECO "B22"]
[WhiteElo "1860"]
[BlackElo "2404"]
[PlyCount "62"]
[EventDate "2025.02.01"]
[EventType "swiss"]
[EventCountry "URU"]
[SourceTitle "playchess.com"]
[Source "ChessBase"]
[SourceQuality "1"]
[TimeControl "5400+30"]

{[%evp 13,62,0,25,18,17,36,39,-18,-11,-14,-15,-27,-11,-55,-60,-62,-72,-105,-71,-68,-26,-36,-29,-26,-20,-57,-31,-32,-16,-31,-27,-31,-32,-43,-39,-47,-46,-66,-66,-70,-80,-129,-114,-241,-239,-288,-280,-296,-252,-228,-197]} 1. e4 {[%emt 0:00:00]} c5 2. Nf3 {[%emt 1:31:30]} e6 {[%emt 1:31:30]} 3. c3 {[%emt 0:00:00]} Nf6 {[%emt 0:00:00][%cal Bg8f6,Bf6d5,Bd5b4][%mdl 32]} 4. e5 {[%emt 0:00:00]} Nd5 {[%emt 0:00:00]} 5. d4 {[%emt 0:00:00]} cxd4 {[%emt 0:00:00]} 6. cxd4 {[%emt 0:00:00]} d6 {[%emt 0:00:00]} 7. Bd3 {[%emt 0:00:00]} Nc6 {[%emt 0:00:00]} 8. O-O {[%emt 0:00:00] B22: Sicilian: 2 c3.} Ndb4 {[%emt 0:00:00]} 9. Bb5 {[%emt 0:00:00]} a6 {[%emt 0:00:00]} 10. Ba4 {[%emt 0:00:00]} ({Better is} 10. Bg5 $14 Be7 11. Bxc6+ Nxc6 12. Bxe7 Nxe7 13. Nc3) 10... b5 $11 {[%emt 0:00:00]} 11. Bb3 {[%emt 0:00:00]} dxe5 {[%emt 0:00:00]} 12. dxe5 {[%emt 0:00:00]} Qxd1 {[%emt 0:00:00]} 13. Rxd1 {[%emt 0:00:00]} Na5 {[%emt 0:05:30]} 14. Bg5 $146 {[%emt 0:00:00][%csl Gg5][%cal Rd1d8] [#]} (14. Nc3 Nxb3 15. axb3 Bb7 16. Bg5 Be7 17. Bxe7 Kxe7 18. Ng5 Rhd8 19. Nce4 Bxe4 20. Nxe4 {0-1 Thyberg,A (1994)-Lindberg,B (2337) Gothenburg Kvibergspelen 2024 (2)}) 14... Bb7 {[%emt 0:00:00]} 15. Nbd2 {[%emt 0:00:00][%cal Bb1d2,Bd2b3,Bb3d4][%mdl 32]} h6 {[%emt 0:00:00]} 16. Be3 {[%emt 0:00:00]} Nxb3 {[%emt 0:00:00]} 17. Nxb3 {[%emt 0:00:00]} Bxf3 {[%emt 0:00:00]} 18. gxf3 {[%emt 0:00:00]} Nd5 {[%emt 0:00:00]} 19. Rac1 {[%emt 0:00:00]} Be7 {[%emt 0:00:00]} 20. f4 {[%emt 0:00:00]} O-O {[%emt 0:00:00]} (20... Kd7 {is interesting.} 21. f5 Rhc8 22. Nd4 Bd8) 21. Nd4 {[%emt 0:00:00]} Rfc8 {[%emt 0:00:00]} 22. Kg2 {[%emt 0:00:00]} Bc5 {[%emt 0:00:00]} 23. Kf3 {[%emt 0:00:00]} Bxd4 {[%emt 0:00:00]} 24. Bxd4 {[%emt 0:00:00]} g6 {[%emt 0:00:00]} 25. h4 {[%emt 0:00:00]} h5 {[%emt 0:00:00]} 26. Bc5 {[%emt 0:00:00]} Rc6 {[%emt 0:00:00]} 27. b3 {[%emt 0:00:00]} (27. Be3 $142 Rac8 28. Rxc6 Rxc6 29. a3) 27... Rac8 $17 {[%emt 0:00:00]} 28. Ba3 {[%emt 0:00:00] White does not recover from this.} (28. Be3 $17 {is a better defense.}) 28... Rc3+ $19 {[%emt 0:00:00]} 29. Rxc3 {[%emt 0:00:00]} Rxc3+ {[%emt 0:00:00]} 30. Ke4 {[%emt 0:00:00]} b4 {[%emt 0:00:00]} 31. Bc1 {[%emt 0:00:00]} Rc2 {[%emt 0:00:00] Weighted Error Value: White=0.24 (precise) /Black=0.10 (very precise)   Mistake:       	White=3     	---        Inaccurate:     	White=3     	Black=3      OK:         	White=6     	Black=14} 0-1

[Event "8th Montevideo Open 2025"]
[Site "Montevideo"]
[Date "2025.02.02"]
[Round "3.10"]
[White "Martinez Tagliafico, Sergio"]
[Black "Estrada Nieto, Julian"]
[Result "0-1"]
[Annotator "TA"]
[ECO "D02"]
[WhiteElo "1831"]
[BlackElo "2195"]
[PlyCount "122"]
[EventDate "2025.02.01"]
[EventType "swiss"]
[EventCountry "URU"]
[SourceTitle "playchess.com"]
[Source "ChessBase"]
[SourceQuality "1"]
[TimeControl "5400+30"]

{[%evp 9,122,-3,27,6,24,-65,-69,-72,-66,-68,-54,-101,-108,-115,-113,-113,-118,-124,-108,-106,-71,-87,-89,-89,-90,-103,-100,-115,-117,-109,-113,-115,-111,-110,-108,-120,-119,-139,-143,-135,-133,-129,-122,-141,-132,-142,-145,-194,-142,-142,-142,-148,-145,-143,-126,-156,-156,-148,-148,-156,-148,-148,-148,-148,-148,-156,-148,-338,-337,-370,-370,-488,-410,-390,-349,-560,-516,-810,-895,-899,-877,-888,-784,-1461,-1521,-2012,-1977,-1621,-149,-12838,-6286,-3179,-2675,-29972,-29975,-29967,-29966,-29958,-7000,-29965,-29970,-29976,-29977,-29974,-29973,-29967,-29975,-29982,-29982,-29980,-29981,-29985,-29986,-29987,-29988]} 1. d4 {[%emt 0:06:44]} Nf6 {[%emt 0:00:57]} 2. Nf3 {[%emt 0:00:27]} d5 {[%emt 0:00:15]} 3. Bf4 {[%emt 0:00:44]} c5 {[%emt 0:00:12]} 4. e3 {[%emt 0:00:27]} Nc6 {[%emt 0:00:58]} 5. Nbd2 {[%emt 0:01:11]} cxd4 {[%emt 0:10:01]} 6. exd4 {[%emt 0:00:09] D02: 1 d4 d5 2 Nf3 sidelines, including 2...Nf6 3 g3 and 2...Nf6 3 Bf4.} Qb6 {[%emt 0:00:05][%csl LRb2,LRd4]} 7. Rb1 {[%emt 0:09:33]} ({Better is} 7. Nb3 $11) 7... Nxd4 $15 {[%emt 0:02:43]} 8. Nxd4 {[%emt 0:01:09] Black is slightly better.} Qxd4 {[%emt 0:00:06]} 9. Bb5+ {[%emt 0:02:18]} Bd7 {[%emt 0:01:15]} 10. Be3 {[%emt 0:05:18]} (10. Bxd7+ $15 {should be considered.} Nxd7 11. Be3) 10... Qg4 $146 {[%emt 0:09:58]} (10... Qb4 11. Bxd7+ Nxd7 12. O-O e6 13. c4 dxc4 14. b3 c3 15. Nc4 Rc8 16. a3 Qb5 {0-1 Zubarev,A (2372)-Dragun,K (2553) Titled Tuesday intern op 26th Dec Early blitz 2023 (2)}) 11. Qxg4 {[%emt 0:15:27]} Nxg4 {[%emt 0:00:03]} 12. Bxd7+ {[%emt 0:00:10]} Kxd7 {[%emt 0:00:03]} 13. c4 {[%emt 0:00:17]} Nxe3 {[%emt 0:00:58]} 14. fxe3 {[%emt 0:00:38]} e6 {[%emt 0:00:25]} 15. cxd5 {[%emt 0:00:11]} exd5 {[%emt 0:00:40]} 16. Rf1 {[%emt 0:01:34]} f6 {[%emt 0:00:40]} 17. Nb3 {[%emt 0:02:34]} Bd6 {[%emt 0:03:06]} 18. g3 {[%emt 0:11:22]} Rhe8 {[%emt 0:11:32]} 19. Ke2 {[%emt 0:03:09]} Rac8 {[%emt 0:03:28]} 20. Rbc1 {[%emt 0:03:54] Prevents Rc2+.} b6 {[%emt 0:04:34]} 21. Rfd1 {[%emt 0:05:00]} Rxc1 {[%emt 0:00:53]} 22. Nxc1 {[%emt 0:00:04][%mdl 4096] Endgame KRB-KRN. Black is a pawn up.} Kc6 {[%emt 0:00:55]} 23. Nb3 {[%emt 0:08:12]} Bc5 {[%emt 0:05:02]} 24. Rd3 {[%emt 0:04:00]} a5 {[%emt 0:06:19]} 25. Kf3 {[%emt 0:02:10]} a4 {[%emt 0:06:14]} 26. Nd2 {[%emt 0:01:04]} Bb4 {[%emt 0:00:56]} 27. Nf1 {[%emt 0:04:30]} Re4 {[%emt 0:05:37] Black is more active.} 28. Rd4 {[%emt 0:02:47]} (28. b3 $17) 28... Rxd4 {[%emt 0:08:04]} (28... f5 $19 29. b3 axb3 30. axb3 Bc5) 29. exd4 $19 {[%emt 0:00:02] KB-KN. Black is a pawn up.} a3 {[%emt 0:00:36]} 30. b3 {[%emt 0:00:51]} Bc3 {[%emt 0:02:52]} 31. Ke3 {[%emt 0:00:14]} Bb2 {[%emt 0:02:37]} 32. g4 {[%emt 0:01:36]} Bc1+ {[%emt 0:01:49]} 33. Kf3 {[%emt 0:00:24]} Kd6 {[%emt 0:04:03]} 34. Ng3 {[%emt 0:00:26]} g6 {[%emt 0:02:13] Prevents Nf5+} 35. h3 {[%emt 0:00:49]} Ke6 {[%emt 0:00:27]} 36. Ne2 {[%emt 0:01:08]} Bd2 {[%emt 0:00:13]} 37. Ng3 {[%emt 0:00:10]} b5 {[%emt 0:02:43]} 38. Ne2 $2 {[%emt 0:00:27]} (38. Kf2 $17) 38... f5 {[%emt 0:00:16]} 39. Ng3 {[%emt 0:02:46]} fxg4+ {[%emt 0:00:52]} 40. Kxg4 {[%emt 0:02:07]} h5+ {[%emt 0:00:51]} 41. Kf3 {[%emt 0:00:30]} Be1 {[%emt 0:01:18] [#]} 42. Ne2 {[%emt 0:00:57]} (42. Nf1) 42... g5 {[%emt 0:00:29] ...Kf5 is the strong threat.} 43. Nc1 {[%emt 0:00:52]} (43. Kg2 $142) 43... Kf5 {[%emt 0:00:23]} 44. Nd3 {[%emt 0:01:49]} g4+ {[%emt 0:00:42]} 45. hxg4+ {[%emt 0:00:02]} hxg4+ {[%emt 0:00:01]} 46. Ke2 {[%emt 0:00:28]} Bc3 {[%emt 0:00:40]} 47. Ke3 {[%emt 0:00:19]} g3 {[%emt 0:00:46]} 48. Kf3 {[%emt 0:02:00] [#]} Bxd4 $2 {[%emt 0:01:31]} (48... g2 $1 $19 {[%cal Rg2g1]} 49. Kxg2 Ke4 (49... Bxd4 50. Kf3 $11) 50. Nf2+ Kxd4) 49. Kxg3 $2 {[%emt 0:00:09][%mdl 8192] Loses the game.} (49. Nf4 $17) 49... Ke4 {[%emt 0:00:16]} 50. Nb4 {[%emt 0:00:30]} Bc5 {[%emt 0:00:29]} 51. Na6 {[%emt 0:00:13]} Bd6+ {[%emt 0:00:25]} 52. Kf2 {[%emt 0:00:19]} Kd3 {[%emt 0:03:59]} 53. b4 {[%emt 0:00:37]} Kc3 {[%emt 0:00:00][%cal Oc3b2] ( -> ...Kb2!)} 54. Nc5 {[%emt 0:00:07]} Kxb4 {[%emt 0:00:00] Black mates.} 55. Nb3 {[%emt 0:00:17]} Kc3 {[%emt 0:00:00]} 56. Ke2 {[%emt 0:00:24]} d4 {[%emt 0:00:00]} 57. Kd1 {[%emt 0:00:23]} d3 {[%emt 0:00:00]} 58. Nc1 {[%emt 0:00:54]} Bf4 {[%emt 0:00:00]} 59. Nb3 {[%emt 0:00:26]} Be3 {[%emt 0:00:00]} 60. Nd2 {[%emt 0:00:15]} Kb2 {[%emt 0:00:41]} 61. Ne4 {[%emt 0:00:31]} b4 {[%emt 0:00:32] Weighted Error Value: White=0.61/Black=0.16 (very precise)   Loses game:     	White=1     	---        Mistake:       	White=5     	Black=1      Inaccurate:     	White=1     	Black=1      OK:         	White=9     	Black=21     Best:        	White=4     	Black=4} 0-1

[Event "8th Montevideo Open 2025"]
[Site "Montevideo"]
[Date "2025.02.02"]
[Round "3.12"]
[White "Izquierdo, Daniel"]
[Black "Pichuaga, Juan Pablo"]
[Result "0-1"]
[Annotator "NA RC"]
[ECO "A26"]
[WhiteElo "2069"]
[BlackElo "1973"]
[PlyCount "84"]
[EventDate "2025.02.01"]
[EventType "swiss"]
[EventCountry "URU"]
[SourceTitle "playchess.com"]
[Source "ChessBase"]
[SourceQuality "1"]
[TimeControl "5400+30"]

1. c4 {[%emt 0:17:19]} e5 {[%emt 0:00:43]} 2. Nc3 {[%emt 0:00:12]} Nc6 {[%emt 0:00:11]} 3. g3 {[%emt 0:00:07]} g6 {[%emt 0:01:20]} 4. Bg2 {[%emt 0:00:21]} Bg7 {[%emt 0:00:16]} 5. d3 {[%emt 1:15:01]} d6 {[%emt 0:01:04]} 6. Nf3 {[%emt 0:00:00]} Nf6 {[%emt 0:00:54]} 7. O-O {[%emt 0:00:00]} O-O {[%emt 0:00:07]} 8. Rb1 {[%emt 0:00:00]} d5 {[%emt 0:08:47] A26: English Opening vs King's Indian with ...Nc6 and d3.} 9. cxd5 {[%emt 0:00:00]} Nxd5 {[%emt 0:05:55]} 10. Nxe5 {[%emt 0:00:00]} Nxc3 {[%emt 0:09:45]} 11. Nxc6 {[%emt 0:00:00]} Nxe2+ {[%emt 0:10:19]} 12. Qxe2 {[%emt 0:00:00]} bxc6 {[%emt 0:00:05]} 13. Bxc6 {[%emt 0:00:00]} Be6 {[%emt 0:57:34]} 14. b3 {[%emt 0:00:00]} Bd5 {[%emt 0:00:00]} 15. Bxd5 {[%emt 0:00:00]} Qxd5 {[%emt 0:00:00]} 16. Bb2 {[%emt 0:00:00]} Rfe8 {[%emt 0:00:00]} 17. Qc2 {[%emt 0:00:00]} Bxb2 {[%emt 0:00:00]} 18. Rxb2 {[%emt 0:00:00]} c6 {[%emt 0:00:00]} 19. Qc4 {[%emt 0:00:00]} Qf3 {[%emt 0:00:00]} 20. Rc2 {[%emt 0:00:00]} Re6 {[%emt 0:00:00]} 21. d4 {[%emt 0:00:00]} Rae8 {[%emt 0:00:00]} 22. Rc3 {[%emt 0:00:00]} Qf5 {[%emt 0:00:00]} 23. Re3 {[%emt 0:00:00]} Qa5 $16 {[%emt 0:00:00]} 24. b4 {[%emt 0:00:00]} Qa4 {[%emt 0:00:00]} 25. Rxe6 {[%emt 0:00:00]} Rxe6 {[%emt 0:00:00]} 26. Rc1 {[%emt 0:00:00]} Qa3 {[%emt 0:00:00]} 27. Rc3 {[%emt 0:00:00]} Qb2 {[%emt 0:00:00]} 28. h4 {[%emt 0:00:00]} Qb1+ {[%emt 0:00:00]} 29. Kh2 {[%emt 0:12:00]} Rf6 {[%emt 0:00:00]} 30. Rc2 {[%emt 0:00:00]} Qe1 {[%emt 0:00:00]} 31. Qe2 {[%emt 0:00:00]} Qxb4 {[%emt 0:00:00]} 32. Qe8+ {[%emt 0:01:30]} Kg7 {[%emt 0:03:26]} 33. Qe5 {[%emt 0:00:00]} Qd6 {[%emt 0:00:29]} 34. Kg2 {[%emt 0:01:00]} Qd5+ {[%emt 0:01:55]} 35. Kg1 {[%emt 0:00:00]} Qf3 {[%emt 0:05:10]} 36. Rd2 {[%emt 0:00:00]} h5 {[%emt 0:00:00]} 37. d5 {[%emt 0:00:39]} cxd5 {[%emt 0:00:00]} 38. Qxd5 {[%emt 0:00:18]} Qxd5 {[%emt 0:00:00]} 39. Rxd5 {[%emt 0:00:01]} Ra6 {[%emt 0:00:00]} 40. Rd2 {[%emt 0:00:04]} Kf6 {[%emt 0:00:00]} 41. Kf1 {[%emt 0:00:08]} Kf5 {[%emt 0:00:00]} 42. Re2 {[%emt 0:01:20]} f6 {[%emt 0:00:00]} 0-1